[Event "FIDE World School-ch O-17 2025"]
[Site "Vrnjacka Banja"]
[Date "2025.03.22"]
[Round "4.1"]
[White "Bogdanov, Artyom"]
[Black "Elmirzaev, Khondamir"]
[Result "1/2-1/2"]
[Annotator "TA"]
[ECO "B52"]
[WhiteElo "2373"]
[BlackElo "2036"]
[PlyCount "57"]
[EventDate "2025.03.19"]
[EventType "swiss"]
[EventCountry "SRB"]
[SourceTitle "playchess.com"]
[Source "ChessBase"]
[SourceQuality "1"]
[TimeControl "5400+30"]

{[%evp 19,57,9,16,-1,-7,-5,0,-10,-8,-12,-12,-16,-16,-21,-8,-35,-13,-17,0,0,0,-10,0,-17,-13,-25,-6,-25,0,0,0,0,0,0,0,0,0,0,0,0]} 1. e4 {[%emt 0:00:03]} c5 {[%emt 0:00:05]} 2. Nf3 {[%emt 0:00:05]} d6 {[%emt 0:00:04]} 3. Bb5+ {[%emt 0:00:06]} Bd7 {[%emt 0:00:04]} 4. Bxd7+ {[%emt 0:00:07]} Qxd7 {[%emt 0:00:04]} 5. O-O {[%emt 0:00:16]} Nf6 {[%emt 0:00:04]} 6. Qe2 {[%emt 0:00:29]} Nc6 {[%emt 0:00:09]} 7. c3 {[%emt 0:00:04]} e6 {[%emt 0:00:18]} 8. d4 {[%emt 0:00:05]} cxd4 {[%emt 0:00:06]} 9. cxd4 {[%emt 0:00:02]} d5 {[%emt 0:00:11]} 10. e5 {[%emt 0:00:04]} Ne4 {[%emt 0:00:06]} 11. Nbd2 $1 {[%emt 0:00:03][%mdl 4] outshines the older 11.Be3. B52: Sicilian: Moscow Variation with 3...Bd7.} Nxd2 {[%emt 0:00:08]} 12. Bxd2 {[%emt 0:00:04]} Bb4 {[%emt 0:01:41]} 13. Bf4 {[%emt 0:02:23]} O-O {[%emt 0:00:21]} 14. h4 {[%emt 0:10:41]} h6 {[%emt 0:00:33]} 15. a3 {[%emt 0:16:23]} Be7 {[%emt 0:00:07]} 16. Bd2 $146 {[%emt 0:09:04]} (16. h5 Rac8 17. Qd2 b6 18. Rad1 Rfd8 19. Bxh6 gxh6 20. Qxh6 Qe8 21. Rd3 Qf8 22. Qf4 {1-0 Aarav,S (1782)-Soureen,B (1631) Bhubaneswar op-A 14th 2023 (9)}) 16... a5 {[%emt 0:03:08]} 17. g3 {[%emt 0:08:40]} a4 {[%emt 0:00:44]} 18. Rac1 {[%emt 0:06:43]} Na5 {[%emt 0:08:34]} 19. Bxa5 {[%emt 0:02:16]} Rxa5 {[%emt 0:03:30]} 20. Rc3 {[%emt 0:00:06]} Qb5 {[%emt 0:07:08]} 21. Qc2 {[%emt 0:00:47]} Ra6 {[%emt 0:01:06]} 22. Rc1 {[%emt 0:08:03]} Rb6 {[%emt 0:04:02]} 23. Kg2 {[%emt 0:03:46]} g6 {[%emt 0:16:54]} (23... Rc6 $5) 24. Qd2 {[%emt 0:09:19] The position is equal.} Kg7 {[%emt 0:00:38]} 25. Rc7 {[%emt 0:02:08]} Bd8 {[%emt 0:01:26]} 26. Rc8 {[%emt 0:00:35]} Be7 {[%emt 0:08:49] [#] Inhibits R1c5.} (26... Qxb2 $2 27. Qf4 Rb3 (27... Qxa3 $2 28. Rxd8 Rc6 29. Rxc6 $18) 28. Rxd8 Rxf3 29. Kxf3 $18) 27. R8c7 {[%emt 0:00:35]} Bd8 {[%emt 0:01:11]} 28. Rc8 {[%emt 0:00:06]} Be7 {[%emt 0:00:34] Threatens to win with ...Rxc8.} (28... Qxb2 $2 29. Qf4 Rb3 (29... Qxa3 $2 {perishes.} 30. Rxd8 Rc6 31. Rxc6 $18) 30. Rxd8 Rxf3 31. Kxf3 $18) 29. R8c7 {[%emt 0:11:29] A rather calm draw.   Weighted Error Value: White=0.06 (flawless) /Black=0.06 (flawless)   Inaccurate:     	White=1     	---        OK:         	White=2     	Black=10     Best:        	White=1     	Black=1} 1/2-1/2

[Event "FIDE World School-ch O-17 2025"]
[Site "Vrnjacka Banja"]
[Date "2025.03.22"]
[Round "4.2"]
[White "Yildiz, Egehan"]
[Black "Ljepic, Andrej"]
[Result "1/2-1/2"]
[Annotator "TA"]
[ECO "E16"]
[WhiteElo "2204"]
[BlackElo "2337"]
[PlyCount "79"]
[EventDate "2025.03.19"]
[EventType "swiss"]
[EventCountry "SRB"]
[SourceTitle "playchess.com"]
[Source "ChessBase"]
[SourceQuality "1"]
[TimeControl "5400+30"]

{[%evp 19,79,21,37,-3,22,11,0,-4,28,9,17,27,39,18,24,0,-19,-32,-27,-25,-25,-37,-29,-68,-43,-45,-16,-20,-8,-61,-65,-68,-68,-67,-73,-74,-57,-93,-93,-103,-26,-25,-26,-66,-26,-40,-19,-20,-8,-48,-21,-20,-3,-73,-16,-16,-22,-63,23,20,17,0]} 1. d4 {[%emt 0:00:03]} e6 {[%emt 0:00:14]} 2. c4 {[%emt 0:00:19]} Nf6 {[%emt 0:00:25]} 3. Nf3 {[%emt 0:00:07]} Bb4+ {[%emt 0:00:07]} 4. Nbd2 {[%emt 0:00:06]} O-O {[%emt 0:00:08]} 5. g3 {[%emt 0:00:44]} c5 {[%emt 0:02:54]} 6. a3 {[%emt 0:10:20]} Bxd2+ {[%emt 0:00:07]} 7. Bxd2 {[%emt 0:05:21]} b6 {[%emt 0:08:29]} 8. Bg2 {[%emt 0:01:34]} Bb7 {[%emt 0:00:06]} 9. dxc5 {[%emt 0:02:01]} bxc5 {[%emt 0:00:17]} 10. O-O {[%emt 0:00:21]} d6 {[%emt 0:04:47]} 11. Qc2 {[%emt 0:05:43] E16: Queen's Indian: 4 g3 Bb7 5 Bg2 Bb4+.} Nbd7 {[%emt 0:06:23]} 12. Rad1 $146 {[%emt 0:04:02]} (12. Rfd1 Qc7 13. Rac1 Be4 14. Qb3 Rfb8 15. Qa2 a5 16. Bc3 a4 17. Bh3 d5 18. Nd2 d4 19. Nxe4 Nxe4 {0-1 Hansen,L-Burgess,M (2335) EU-ch U21 Groningen 1986 (7)}) 12... Qc7 {[%emt 0:03:50]} 13. Ne1 {[%emt 0:12:13]} d5 {[%emt 0:14:49]} 14. Nd3 {[%emt 0:05:18]} d4 {[%emt 0:04:42]} 15. Bf4 {[%emt 0:02:48] This pair of bishops is nice.} Qb6 {[%emt 0:00:52]} 16. Bxb7 $1 {[%emt 0:00:35]} Qxb7 {[%emt 0:00:07]} 17. b4 {[%emt 0:47:25]} Rfe8 {[%emt 0:12:20]} 18. f3 {[%emt 0:00:00]} e5 {[%emt 0:01:46]} 19. Bg5 {[%emt 0:00:00]} cxb4 {[%emt 0:05:01]} 20. axb4 {[%emt 0:00:00]} Rac8 {[%emt 0:03:01]} 21. e4 {[%emt 0:00:00]} dxe3 $1 {[%emt 0:02:17]} 22. Bxe3 {[%emt 0:00:00]} a6 {[%emt 0:07:16]} 23. Nc5 {[%emt 0:00:00]} Nxc5 {[%emt 0:00:58]} 24. Bxc5 {[%emt 0:00:00] [#]} (24. bxc5 $11 e4 25. Qf2) 24... a5 $1 $15 {[%emt 0:00:34]} 25. Rb1 {[%emt 0:00:00]} Qc6 {[%emt 0:02:17]} 26. Ba7 {[%emt 0:00:00]} axb4 {[%emt 0:05:56]} 27. Rxb4 {[%emt 0:00:00]} h5 {[%emt 0:00:54]} 28. Qf2 {[%emt 0:00:00]} Qe6 {[%emt 0:01:21]} 29. Rc1 {[%emt 0:00:00]} e4 {[%emt 0:01:16] Black has strong rooks and is better. Black has a king side majority} (29... h4 $17 30. Re1 hxg3 (30... Rxc4 31. Rxc4 Qxc4 32. gxh4 $17) 31. hxg3 Rxc4 32. Rxc4 Qxc4) 30. Bd4 $11 {[%emt 0:01:08]} exf3 {[%emt 0:01:46]} (30... Rc6 {simplifies} 31. Bxf6 Qxf6 32. fxe4 Qg6) 31. Qxf3 {[%emt 0:00:14]} Ng4 {[%emt 0:02:21] Threatens to win with ...Rcd8.} 32. c5 {[%emt 0:00:59]} Qa2 {[%emt 0:01:47]} 33. Rb2 {[%emt 0:01:51] Successful Defense White} Qa4 {[%emt 0:00:08]} 34. Qc3 {[%emt 0:01:39][%cal Oh2h3]} Rcd8 {[%emt 0:00:29]} 35. Rd2 {[%emt 0:01:21][%cal Oc5c6]} Qc6 {[%emt 0:00:45]} 36. Rcd1 {[%emt 0:01:03]} (36. h3 $1 $11 Ne5 37. Rf1) 36... f6 {[%emt 0:00:14]} (36... Re6 $17) 37. Qb3+ {[%emt 0:00:43]} Kh8 {[%emt 0:00:52]} 38. Qf7 {[%emt 0:00:28]} Qd5 {[%emt 0:01:35]} (38... Rd5 39. Bxf6 Qxc5+ 40. Bd4 $16) (38... Qe4 $1 $15) 39. Qxd5 {[%emt 0:00:04]} Rxd5 {[%emt 0:00:03]} 40. Bf2 {[%emt 0:00:29] Weighted Error Value: White=0.18 (very precise) /Black=0.17 (very precise)   Mistake:       	White=2     	Black=3      Inaccurate:     	White=6     	Black=4      OK:         	White=9     	Black=12     Best:        	White=1     	---        Strong:       	White=1     	Black=1} 1/2-1/2

[Event "FIDE World School-ch O-17 2025"]
[Site "Vrnjacka Banja"]
[Date "2025.03.22"]
[Round "4.3"]
[White "Milanovic, Marko"]
[Black "Taran, Egor A"]
[Result "1-0"]
[Annotator "TA"]
[ECO "B51"]
[WhiteElo "2271"]
[BlackElo "1961"]
[PlyCount "71"]
[EventDate "2025.03.19"]
[EventType "swiss"]
[EventCountry "SRB"]
[SourceTitle "playchess.com"]
[Source "ChessBase"]
[SourceQuality "1"]
[TimeControl "5400+30"]

{[%evp 9,71,10,12,32,38,42,32,36,49,49,41,39,38,38,72,64,62,56,38,25,78,47,75,69,139,141,148,139,150,62,185,177,196,194,193,179,203,209,252,258,304,265,287,264,256,199,232,195,189,191,193,203,345,333,423,437,404,391,585,580,558,536,29993,29994]} 1. e4 {[%emt 0:00:03]} c5 {[%emt 0:00:04]} 2. Nf3 {[%emt 0:00:03]} d6 {[%emt 0:00:04]} 3. Bb5+ {[%emt 0:03:58]} Nd7 {[%emt 0:00:25]} 4. a4 {[%emt 0:00:26]} a6 {[%emt 0:00:04]} 5. Be2 {[%emt 0:00:26]} Ngf6 {[%emt 0:00:06]} 6. Nc3 {[%emt 0:00:33] B51: Sicilian: Moscow Variation (3 Bb5+) without 3...Bd7.} g6 {[%emt 0:00:21]} 7. a5 {[%emt 0:01:19]} Bg7 {[%emt 0:01:02]} 8. O-O {[%emt 0:01:59] White is slightly better.} b5 {[%emt 0:02:03]} 9. axb6 {[%emt 0:00:27]} Qxb6 {[%emt 0:02:40]} 10. d3 {[%emt 0:02:40]} O-O {[%emt 0:01:59]} 11. Nd2 {[%emt 0:04:45]} Qc7 {[%emt 1:27:12]} 12. f4 $146 {[%emt 0:04:59]} (12. Nc4 Rb8 13. Be3 Nb6 14. Nxb6 Rxb6 15. Qc1 Qb8 16. e5 dxe5 17. Na4 Rc6 18. Bf3 {½-½ Huschenbeth,N (2608)-Areshchenko,A (2690) POL-chT Ekstraliga 2021 (6.3)}) 12... Nb6 {[%emt 0:00:00]} 13. Bf3 {[%emt 0:05:17][%cal Oe4e5]} Bb7 {[%emt 0:00:00]} 14. Nb3 {[%emt 0:03:36]} Rad8 {[%emt 0:00:00]} (14... a5 $11) 15. Na5 {[%emt 0:05:26]} Bc8 {[%emt 0:00:00]} 16. Qe1 {[%emt 0:04:33]} e5 {[%emt 0:00:00]} (16... e6 $14) 17. fxe5 $16 {[%emt 0:09:04]} dxe5 {[%emt 0:00:00]} 18. Qh4 {[%emt 0:05:01]} Ne8 {[%emt 0:00:00]} 19. Nc4 {[%emt 0:04:33] White is more active.} (19. Qf2 $16) 19... Bb7 {[%emt 0:00:00] [#] Loses the game.} (19... Nxc4 $14 20. dxc4 Bb7) 20. Nxb6 $1 $18 {[%emt 0:07:47]} Qxb6 {[%emt 0:00:00]} 21. Na4 {[%emt 0:00:56]} Qc7 {[%emt 0:00:00]} 22. Be3 {[%emt 0:01:09]} Rc8 {[%emt 0:00:00]} 23. Nxc5 {[%emt 0:04:42][%cal Of3g4]} Nd6 {[%emt 0:00:00][%cal Be8d6,Bd6b7,Bb7d6,Bd6e4][%mdl 32]} 24. c4 {[%emt 0:05:32]} ({Don't play} 24. Nxa6 Bxa6 25. Rxa6 Rb8 $18) 24... Rfd8 {[%emt 0:00:00]} 25. Nxa6 {[%emt 0:03:40]} Bxa6 {[%emt 0:00:00]} 26. Rxa6 {[%emt 0:00:06]} Nb7 {[%emt 0:00:00]} 27. Bb6 {[%emt 0:05:47]} Qc6 {[%emt 0:00:00]} 28. Bg4 {[%emt 0:04:15]} Ra8 {[%emt 0:00:00]} 29. Bxd8 {[%emt 0:00:57]} Qxa6 {[%emt 0:00:00]} 30. Be7 {[%emt 0:01:23]} Bf8 {[%emt 0:00:00] [#]} (30... h5 $142) 31. Qf2 $1 {[%emt 0:02:05]} Nd6 {[%emt 0:00:00]} (31... Qa7 32. Qxa7) 32. Bxf8 {[%emt 0:01:18]} Rxf8 {[%emt 0:00:00]} 33. Qc5 {[%emt 0:00:41]} f6 {[%emt 0:00:00]} (33... Nb7 {is a better defense.} 34. Qxe5 Qb6+ 35. d4 Na5) 34. Be6+ {[%emt 0:01:17]} Kg7 {[%emt 0:00:00]} 35. b4 {[%emt 0:00:38] Threatens to win with b5.} Nxe4 {[%emt 0:00:00]} 36. Qe7+ {[%emt 0:00:20] Weighted Error Value: White=0.12 (very precise) /Black=0.57  Mistake:       	White=1     	Black=5      Inaccurate:     	White=1     	Black=3      OK:         	White=13    	Black=8      Best:        	White=2     	---} 1-0

[Event "FIDE World School-ch O-17 2025"]
[Site "Vrnjacka Banja"]
[Date "2025.03.22"]
[Round "4.4"]
[White "Topuz, Mirac Melih"]
[Black "Amankos, Zhanbolat"]
[Result "1-0"]
[Annotator "NA RC"]
[ECO "A52"]
[WhiteElo "2113"]
[BlackElo "1954"]
[PlyCount "83"]
[EventDate "2025.03.19"]
[EventType "swiss"]
[EventCountry "SRB"]
[SourceTitle "playchess.com"]
[Source "ChessBase"]
[SourceQuality "1"]
[TimeControl "5400+30"]

1. d4 {[%emt 0:00:01]} Nf6 {[%emt 0:00:05]} 2. c4 {[%emt 0:00:04]} e5 {[%emt 0:00:03]} 3. dxe5 {[%emt 0:00:04]} Ng4 {[%emt 0:00:04]} 4. e3 {[%emt 0:00:11]} Nxe5 {[%emt 0:00:05]} 5. f4 {[%emt 0:00:06]} Nec6 {[%emt 0:00:12]} 6. Nc3 {[%emt 0:00:26]} d6 {[%emt 0:00:25]} 7. Nge2 {[%emt 0:01:48]} g6 {[%emt 0:00:37]} 8. g3 {[%emt 0:02:29]} Bg7 {[%emt 0:00:49]} 9. Bg2 {[%emt 0:00:00]} O-O {[%emt 0:01:21]} 10. O-O {[%emt 0:00:15]} Ne7 {[%emt 0:04:33]} 11. e4 {[%emt 0:02:43]} f5 {[%emt 0:08:08]} 12. Be3 {[%emt 0:05:10]} Nbc6 {[%emt 0:01:11]} 13. Qd2 {[%emt 0:04:49]} fxe4 {[%emt 0:01:50]} 14. Nxe4 {[%emt 0:00:46]} Nf5 {[%emt 0:00:55]} 15. Bf2 {[%emt 0:00:09]} Nce7 {[%emt 0:09:11]} 16. g4 {[%emt 0:03:22]} Nh6 {[%emt 0:00:44]} 17. h3 {[%emt 0:00:06]} Nc6 {[%emt 0:04:16]} 18. Rac1 {[%emt 0:02:02]} Nf7 {[%emt 0:06:19]} 19. b4 {[%emt 0:02:22]} h5 {[%emt 0:14:30]} 20. b5 {[%emt 0:05:49]} Nb8 {[%emt 0:00:53]} 21. Bd4 {[%emt 0:04:07]} Nd7 {[%emt 0:01:40]} 22. Bxg7 {[%emt 0:00:45]} Kxg7 {[%emt 0:00:03]} 23. Qd4+ {[%emt 0:00:29]} Kh7 {[%emt 0:00:26]} 24. N2c3 {[%emt 0:04:19]} c5 {[%emt 0:04:53]} 25. Qd3 {[%emt 0:02:39]} hxg4 {[%emt 0:01:11]} 26. hxg4 {[%emt 0:00:00]} Nb6 {[%emt 0:01:28]} 27. f5 {[%emt 0:02:19]} gxf5 {[%emt 0:01:59]} 28. gxf5 {[%emt 0:03:23]} Rh8 {[%emt 0:02:45]} 29. f6 {[%emt 0:00:54]} Ne5 {[%emt 0:01:50]} 30. Qg3 {[%emt 0:03:20]} Ng4 {[%emt 0:04:04]} 31. Qh4+ {[%emt 0:00:19]} Nh6 {[%emt 0:00:14]} 32. Ng5+ {[%emt 0:00:07]} Kg6 {[%emt 0:00:17]} 33. Nge4 {[%emt 0:01:47]} Rg8 {[%emt 0:01:05]} 34. Ng3 {[%emt 0:05:44]} d5 {[%emt 0:10:53]} 35. cxd5 {[%emt 0:00:53]} Kf7 {[%emt 0:04:29]} 36. Qxh6 {[%emt 0:00:07]} Rxg3 {[%emt 0:01:13]} 37. Qh7+ {[%emt 0:01:48]} Kf8 {[%emt 0:00:07]} 38. Qh8+ {[%emt 0:00:52]} Rg8 {[%emt 0:00:05]} 39. Qh6+ {[%emt 0:00:13]} Kf7 {[%emt 0:00:10]} 40. Qh5+ {[%emt 0:00:24]} Kf8 {[%emt 0:01:05]} 41. f7 {[%emt 0:00:21]} Rxg2+ {[%emt 0:00:37]} 42. Kxg2 {[%emt 0:00:01]} 1-0

[Event "FIDE World School-ch O-17 2025"]
[Site "Vrnjacka Banja"]
[Date "2025.03.22"]
[Round "4.5"]
[White "Andjelkovic, Aleksandar M"]
[Black "Adithya A Chullikkad"]
[Result "1-0"]
[Annotator "TA"]
[ECO "E12"]
[WhiteElo "1930"]
[BlackElo "2101"]
[PlyCount "87"]
[EventDate "2025.03.19"]
[EventType "swiss"]
[EventCountry "SRB"]
[SourceTitle "playchess.com"]
[Source "ChessBase"]
[SourceQuality "1"]
[TimeControl "5400+30"]

{[%evp 14,87,12,0,37,-12,-7,-36,-17,-15,-15,-16,0,-41,-20,-73,-81,-73,-66,-152,-71,-77,-73,-85,-87,-64,-32,-36,-18,-5,-21,-14,0,0,8,15,73,75,98,89,152,174,178,143,177,21,27,25,185,182,334,209,356,342,331,308,372,394,394,387,454,156,162,148,219,217,205,87,150,145,1105,1104,1075,1067,1008,947]} 1. d4 {[%emt 0:00:06]} Nf6 {[%emt 0:00:23]} 2. Nf3 {[%emt 0:01:03]} e6 {[%emt 0:00:46]} 3. c4 {[%emt 0:00:19]} b6 {[%emt 0:01:27]} 4. a3 {[%emt 0:02:15]} Bb7 {[%emt 0:01:17]} 5. Nc3 {[%emt 0:00:36]} d5 {[%emt 0:01:39]} 6. cxd5 {[%emt 0:06:24]} Nxd5 {[%emt 0:01:01]} 7. Qc2 {[%emt 0:00:37]} Nxc3 {[%emt 0:00:51]} 8. Qxc3 {[%emt 0:00:29]} Nd7 {[%emt 0:04:01] E12: Queen's Indian: Unusual White 4th moves, 4 a3, 4 Nc3 Bb7 5 a3 and 4 Nc3 Bb7 .} 9. Bf4 {[%emt 0:14:29]} (9. Bg5 $14 Qc8 10. e3) 9... Bd6 $11 {[%emt 0:10:31]} 10. Qd2 $146 {[%emt 0:09:48]} (10. Bg3 O-O 11. e3 Rc8 12. Bd3 Nf6 13. Bh4 Be7 14. Qc2 h6 15. Rd1 Nh5 16. Bg3 Nxg3 17. hxg3 {½-½ Amarasena,K (1900)-Kazimova,N (2148) World ol U16 07th 2008 (2)}) 10... O-O {[%emt 0:03:46] Black is slightly better.} 11. Bxd6 {[%emt 0:02:54]} cxd6 {[%emt 0:00:22]} 12. e3 {[%emt 0:00:12]} Rc8 {[%emt 0:05:40]} 13. Bd3 {[%emt 0:05:31]} Qf6 {[%emt 0:13:59]} 14. Qe2 {[%emt 0:05:10]} (14. Qd1 $1 $11 {remains equal.}) 14... e5 $17 {[%emt 0:08:22]} 15. dxe5 {[%emt 0:10:40]} dxe5 {[%emt 0:01:51]} 16. Bc2 {[%emt 0:03:08]} (16. Bb5 $15 e4 17. Nd4) 16... Rc7 {[%emt 0:19:31]} (16... Nc5 $142 $1 {And now ...Ba6 would win.} 17. b4 Ne6) 17. O-O {[%emt 0:03:34]} Rfc8 {[%emt 0:00:16]} 18. Bb3 {[%emt 0:04:38]} Nc5 {[%emt 0:03:28]} 19. Bc4 {[%emt 0:05:28]} Ne6 {[%emt 0:03:26]} 20. b3 {[%emt 0:07:22]} b5 {[%emt 0:06:51]} 21. Bxb5 {[%emt 0:02:49]} Rc2 {[%emt 0:00:20]} 22. Qd1 {[%emt 0:00:57]} Ng5 {[%emt 0:00:43][%mdl 1024] Black has compensation.} 23. Ne1 {[%emt 0:03:03]} R2c5 {[%emt 0:02:24]} 24. Bc4 {[%emt 0:01:15]} Qg6 {[%emt 0:01:57]} (24... Ne4 $11) 25. Qg4 $16 {[%emt 0:01:49]} h5 {[%emt 0:02:25]} 26. Qg3 {[%emt 0:00:45]} (26. Bxf7+ Qxf7 27. Qxg5 Ba6 $19) 26... e4 {[%emt 0:01:11]} (26... Qf6 $142) 27. h4 {[%emt 0:00:31]} Qf6 {[%emt 0:00:31]} 28. Rd1 {[%emt 0:03:43]} Ne6 {[%emt 0:00:43]} 29. Rd7 $2 {[%emt 0:01:16]} (29. Nc2 $18) 29... Bc6 $1 $11 {[%emt 0:00:43]} 30. Rxa7 {[%emt 0:00:38][%cal Bd7a7,Ba7a6,Ba6d6,Bd6d2,Bd2d1][%mdl 32]} Be8 $2 {[%emt 0:02:06]} (30... Bd5 $11 {and Black has nothing to worry.}) 31. Nc2 $18 {[%emt 0:01:06]} Nf8 {[%emt 0:02:25]} (31... Nc7 32. Rb7 Bb5) 32. Rd1 {[%emt 0:00:44]} Qb6 {[%emt 0:01:01]} (32... Rxc4 {might work better.} 33. bxc4 Qb6) 33. Ra6 {[%emt 0:01:45]} Qb7 {[%emt 0:00:01]} 34. Rad6 {[%emt 0:00:34]} Rxc4 {[%emt 0:00:56]} 35. bxc4 {[%emt 0:00:11]} Ba4 {[%emt 0:00:03]} 36. R6d2 {[%emt 0:02:03]} Rxc4 {[%emt 0:00:46] [#]} 37. Nb4 {[%emt 0:00:37]} Bxd1 $16 {[%emt 0:00:13]} 38. Rxd1 {[%emt 0:00:01]} Ne6 {[%emt 0:00:12] [#]} (38... Rc5 $16 39. Qd6 Qc7) 39. Qe5 $1 $18 {[%emt 0:00:29]} Rc5 {[%emt 0:00:59]} 40. Qd6 {[%emt 0:00:45]} (40. Rd8+ $18 {is more deadly.} Kh7 41. Rd5 Rc1+ 42. Kh2) 40... Qa8 {[%emt 0:00:46]} (40... Qb5 $142) 41. Nd5 $16 {[%emt 0:00:45][%cal Bb4d5,Bd5e7,Be7c8][%mdl 32] White is more active.} Qxa3 $2 {[%emt 0:00:31][%mdl 8192]} (41... Qa4 $16 42. Ne7+ Kh7) 42. Ne7+ {[%emt 0:00:12] White is clearly winning.} Kh7 {[%emt 0:00:05]} 43. Qb8 {[%emt 0:00:34]} Rc8 {[%emt 0:00:35]} 44. Nxc8 {[%emt 0:00:07] Weighted Error Value: White=0.31/Black=0.52  Loses game:     	---       	Black=1      Missed win:     	White=1     	---        Mistake:       	White=5     	Black=8      Inaccurate:     	White=3     	Black=1      OK:         	White=16    	Black=8      Best:        	White=1     	Black=3      Strong:       	White=1     	Black=1} 1-0

[Event "FIDE World School-ch O-17 2025"]
[Site "Vrnjacka Banja"]
[Date "2025.03.22"]
[Round "4.6"]
[White "Senevirathne, D C B K"]
[Black "Orgilon Batsaikhan"]
[Result "0-1"]
[Annotator "NA RC"]
[ECO "B90"]
[WhiteElo "1840"]
[BlackElo "2024"]
[PlyCount "62"]
[EventDate "2025.03.19"]
[EventType "swiss"]
[EventCountry "SRB"]
[SourceTitle "playchess.com"]
[Source "ChessBase"]
[SourceQuality "1"]
[TimeControl "5400+30"]

1. e4 {[%emt 0:06:34]} c5 {[%emt 0:00:06]} 2. Nf3 {[%emt 0:00:05]} d6 {[%emt 0:00:04]} 3. d4 {[%emt 0:00:04]} cxd4 {[%emt 0:00:04]} 4. Nxd4 {[%emt 0:00:05]} Nf6 {[%emt 0:00:05]} 5. Nc3 {[%emt 0:00:04]} a6 {[%emt 0:00:03]} 6. a4 {[%emt 0:00:06]} e5 {[%emt 0:04:14]} 7. Nf3 {[%emt 0:00:11]} Qc7 {[%emt 0:01:04]} 8. Bg5 {[%emt 0:00:12]} Nbd7 {[%emt 0:00:07]} 9. Be2 {[%emt 0:02:38]} Be7 {[%emt 0:00:26]} 10. O-O {[%emt 0:01:22]} h6 {[%emt 0:01:18]} 11. Bxf6 {[%emt 0:03:56]} Nxf6 {[%emt 0:00:14]} 12. Qd3 {[%emt 0:10:50]} Be6 {[%emt 0:00:51]} 13. Nd2 {[%emt 0:01:46]} Rd8 {[%emt 0:11:56]} 14. Nd5 {[%emt 0:01:27]} Bxd5 {[%emt 0:02:35]} 15. exd5 {[%emt 0:00:27]} O-O {[%emt 0:00:06]} 16. Kh1 {[%emt 0:03:14]} Nd7 {[%emt 0:03:36]} 17. Bg4 {[%emt 0:17:38]} Nc5 {[%emt 0:04:40]} 18. Qh3 {[%emt 0:00:35]} b5 {[%emt 0:04:06]} 19. axb5 {[%emt 0:02:56]} axb5 {[%emt 0:00:02]} 20. b4 {[%emt 0:02:07]} Na4 {[%emt 0:01:24]} 21. c4 {[%emt 0:01:42]} Nb6 {[%emt 0:01:54]} 22. cxb5 {[%emt 0:00:53]} Qc2 {[%emt 0:00:44]} 23. Rfd1 {[%emt 0:03:53]} Ra8 {[%emt 0:15:22]} 24. Bf5 {[%emt 0:10:09]} Qxd2 {[%emt 0:00:43]} 25. Qh5 {[%emt 0:00:49]} Rxa1 {[%emt 0:00:45]} 26. Rxa1 {[%emt 0:00:06]} Qxb4 {[%emt 0:00:24]} 27. Bd3 {[%emt 0:00:09]} Nxd5 {[%emt 0:01:28]} 28. Qf5 {[%emt 0:00:27]} g6 {[%emt 0:01:13]} 29. Qd7 {[%emt 0:00:13]} Qd4 {[%emt 0:00:20]} 30. Rd1 {[%emt 0:00:05]} Nc3 {[%emt 0:00:26]} 31. Rd2 {[%emt 0:00:22]} Ne4 {[%emt 0:00:07]} 0-1

[Event "FIDE World School-ch O-17 2025"]
[Site "Vrnjacka Banja"]
[Date "2025.03.22"]
[Round "4.7"]
[White "Adilbekuly, Altair"]
[Black "Kazhmuratov, Altair"]
[Result "0-1"]
[Annotator "NA RC"]
[ECO "C77"]
[WhiteElo "1628"]
[BlackElo "1971"]
[PlyCount "56"]
[EventDate "2025.03.19"]
[EventType "swiss"]
[EventCountry "SRB"]
[SourceTitle "playchess.com"]
[Source "ChessBase"]
[SourceQuality "1"]
[TimeControl "5400+30"]

1. e4 {[%emt 0:00:02]} Nc6 {[%emt 0:01:33]} 2. Nf3 {[%emt 0:01:15]} e5 {[%emt 0:00:34]} 3. Bb5 {[%emt 0:00:29]} a6 {[%emt 0:00:37]} 4. Ba4 {[%emt 0:00:05]} d6 {[%emt 0:01:55]} 5. h3 {[%emt 0:06:30]} Nf6 {[%emt 0:03:08]} 6. d3 {[%emt 0:01:02]} g6 {[%emt 0:01:40]} 7. O-O {[%emt 0:03:16]} b5 {[%emt 0:03:11]} 8. Bb3 {[%emt 0:00:04]} Na5 {[%emt 0:00:11]} 9. c3 {[%emt 0:01:10]} Nxb3 {[%emt 0:00:29]} 10. Qxb3 {[%emt 0:00:28]} Bg7 {[%emt 0:01:00]} 11. Be3 {[%emt 0:03:07]} O-O {[%emt 0:01:20]} 12. Nbd2 {[%emt 0:00:47]} Re8 {[%emt 0:01:10]} 13. Rfe1 {[%emt 0:05:26]} d5 {[%emt 0:04:42]} 14. Bg5 {[%emt 0:06:35]} Bb7 {[%emt 0:05:47]} 15. a4 {[%emt 0:03:03]} Bc6 {[%emt 0:04:45]} 16. axb5 {[%emt 0:07:39]} axb5 {[%emt 0:12:49]} 17. Qc2 {[%emt 0:01:08]} h6 {[%emt 0:03:26]} 18. Bh4 {[%emt 0:01:05]} Rxa1 {[%emt 0:06:38]} 19. Rxa1 {[%emt 0:00:22]} g5 {[%emt 0:01:54]} 20. Bg3 {[%emt 0:00:06]} Nh5 {[%emt 0:00:10]} 21. Nf1 {[%emt 0:06:02]} Nf4 {[%emt 0:01:56]} 22. Ra6 {[%emt 0:09:20]} Re6 {[%emt 0:03:07]} 23. Ne3 {[%emt 0:12:01]} dxe4 {[%emt 0:01:10]} 24. dxe4 {[%emt 0:00:05]} Bxe4 {[%emt 0:01:56]} 25. Qxe4 {[%emt 0:00:06]} Rxa6 {[%emt 0:00:04]} 26. h4 {[%emt 0:02:22]} Qd3 {[%emt 0:03:37]} 27. Qb7 {[%emt 0:00:35]} Ra1+ {[%emt 0:00:45]} 28. Kh2 {[%emt 0:00:05]} Qb1 {[%emt 0:00:16]} 0-1